[Event "Late-Titled-Tuesday-Blitz-January-23-2024"]
[Site "Chess.com"]
[Date "2024.01.23"]
[Round "4"]
[White "mjelcic"]
[Black "HackingKid98"]
[Result "0-1"]
[WhiteElo "2219"]
[BlackElo "2545"]
[TimeControl "180+1"]
[EndTime "14:36:51 PST"]
[Termination "HackingKid98 won by resignation"]

1. e4 {[%clk 0:03:00.9]} 1... c6 {[%clk 0:02:58.5]} 2. d4 {[%clk 0:03:00.5]}
2... d5 {[%clk 0:02:59.4]} 3. e5 {[%clk 0:03:00.5]} 3... Bf5 {[%clk 0:02:58.9]}
4. h4 {[%clk 0:03:00.2]} 4... h5 {[%clk 0:02:58.9]} 5. Bg5 {[%clk 0:03:00.3]}
5... Qa5+ {[%clk 0:02:56.2]} 6. Nc3 {[%clk 0:02:37.2]} 6... e6 {[%clk
0:02:54.3]} 7. Bd3 {[%clk 0:02:34.2]} 7... Bxd3 {[%clk 0:02:46.6]} 8. Qxd3
{[%clk 0:02:35.1]} 8... c5 {[%clk 0:02:46.8]} 9. Ne2 {[%clk 0:02:32.4]} 9... Nc6
{[%clk 0:02:40.6]} 10. O-O {[%clk 0:02:26.9]} 10... Nh6 {[%clk 0:02:39.1]} 11.
Bxh6 {[%clk 0:02:08.6]} 11... gxh6 {[%clk 0:02:35.8]} 12. Rfe1 {[%clk
0:01:58.7]} 12... O-O-O {[%clk 0:02:33.9]} 13. a4 {[%clk 0:01:30.5]} 13... Be7
{[%clk 0:02:31.4]} 14. g3 {[%clk 0:01:29.7]} 14... Rdg8 {[%clk 0:02:30.7]} 15.
Kh2 {[%clk 0:01:28.8]} 15... Rg4 {[%clk 0:02:30.7]} 16. dxc5 {[%clk 0:01:21.7]}
16... Rhg8 {[%clk 0:02:29.7]} 17. Kh3 {[%clk 0:01:08.9]} 17... Bxh4 {[%clk
0:02:18.8]} 18. gxh4 {[%clk 0:00:55.8]} 18... Qd8 {[%clk 0:02:18.5]} 19. Ng3
{[%clk 0:00:48.2]} 19... Qxh4+ {[%clk 0:02:11]} 20. Kg2 {[%clk 0:00:48.3]} 20...
Qg5 {[%clk 0:02:10.1]} 21. Kf1 {[%clk 0:00:25.2]} 21... h4 {[%clk 0:02:10.1]}
22. Nh1 {[%clk 0:00:25.6]} 22... Nxe5 {[%clk 0:02:02.3]} 23. Qe3 {[%clk
0:00:23.4]} 23... Rg1+ {[%clk 0:01:57.9]} 24. Ke2 {[%clk 0:00:23.4]} 24... Qh5+
{[%clk 0:01:47.6]} 25. f3 {[%clk 0:00:19.1]} 25... R1g2+ {[%clk 0:01:21.2]} 26.
Nf2 {[%clk 0:00:18.8]} 26... R8g3 {[%clk 0:01:10.7]} 27. c6 {[%clk 0:00:13.9]}
27... Rxf3 {[%clk 0:01:07.5]} 28. cxb7+ {[%clk 0:00:14.8]} 28... Kxb7 {[%clk
0:01:06.7]} 29. Qc5 {[%clk 0:00:06.8]} 29... Rfxf2+ {[%clk 0:01:05.9]} 0-1

[Event "Late-Titled-Tuesday-Blitz-January-23-2024"]
[Site "Chess.com"]
[Date "2024.01.23"]
[Round "4"]
[White "Korchmar_Vasiliy"]
[Black "TigrVShlyape"]
[Result "1/2-1/2"]
[WhiteElo "2740"]
[BlackElo "2940"]
[TimeControl "180+1"]
[EndTime "14:36:54 PST"]
[Termination "Game drawn by repetition"]

1. e4 {[%clk 0:03:00.9]} 1... c5 {[%clk 0:02:59.2]} 2. d4 {[%clk 0:03:00.9]}
2... cxd4 {[%clk 0:02:58.7]} 3. Qxd4 {[%clk 0:03:01.8]} 3... Nc6 {[%clk
0:02:53.8]} 4. Qd3 {[%clk 0:03:02]} 4... e6 {[%clk 0:02:49.2]} 5. Nc3 {[%clk
0:03:00.3]} 5... a6 {[%clk 0:02:49.2]} 6. Qg3 {[%clk 0:02:57.3]} 6... b5 {[%clk
0:02:36.2]} 7. Nf3 {[%clk 0:02:47.2]} 7... b4 {[%clk 0:02:27.8]} 8. Na4 {[%clk
0:02:38.9]} 8... Nf6 {[%clk 0:02:24.2]} 9. Bd3 {[%clk 0:02:31.5]} 9... d6 {[%clk
0:02:02.2]} 10. Be3 {[%clk 0:02:22.4]} 10... Rb8 {[%clk 0:02:00.1]} 11. O-O
{[%clk 0:01:57.6]} 11... Be7 {[%clk 0:01:59.1]} 12. e5 {[%clk 0:01:39.3]} 12...
dxe5 {[%clk 0:01:53.2]} 13. Nxe5 {[%clk 0:01:25.3]} 13... Nxe5 {[%clk
0:01:52.7]} 14. Qxe5 {[%clk 0:01:26.2]} 14... Bd6 {[%clk 0:01:52.4]} 15. Qg5
{[%clk 0:01:19.1]} 15... O-O {[%clk 0:01:51.2]} 16. Rad1 {[%clk 0:01:18.7]}
16... Qc7 {[%clk 0:01:50.2]} 17. Qh4 {[%clk 0:01:09.6]} 17... Be7 {[%clk
0:01:04.3]} 18. Rfe1 {[%clk 0:00:37.2]} 18... Qc6 {[%clk 0:01:02.3]} 19. Bg5
{[%clk 0:00:26.9]} 19... h6 {[%clk 0:01:01]} 20. Bxh6 {[%clk 0:00:27.3]} 20...
gxh6 {[%clk 0:00:58.5]} 21. Qxh6 {[%clk 0:00:28.2]} 21... Bb7 {[%clk 0:00:44.4]}
22. Qg5+ {[%clk 0:00:25.8]} 22... Kh8 {[%clk 0:00:44.1]} 23. Qh6+ {[%clk
0:00:20.4]} 23... Kg8 {[%clk 0:00:43.6]} 24. Qg5+ {[%clk 0:00:08.4]} 24... Kh8
{[%clk 0:00:43.9]} 25. Qh6+ {[%clk 0:00:08.5]} 25... Kg8 {[%clk 0:00:43.9]}
1/2-1/2

[Event "Late-Titled-Tuesday-Blitz-January-23-2024"]
[Site "Chess.com"]
[Date "2024.01.23"]
[Round "4"]
[White "Sebastian"]
[Black "M1711"]
[Result "1-0"]
[WhiteElo "2995"]
[BlackElo "2639"]
[TimeControl "180+1"]
[EndTime "14:36:57 PST"]
[Termination "Sebastian won on time"]

1. e4 {[%clk 0:03:00.9]} 1... c6 {[%clk 0:02:59.3]} 2. d4 {[%clk 0:03:00.7]}
2... d5 {[%clk 0:02:59.6]} 3. e5 {[%clk 0:03:01.6]} 3... c5 {[%clk 0:02:58.8]}
4. Nf3 {[%clk 0:03:02.5]} 4... cxd4 {[%clk 0:02:58.7]} 5. Nxd4 {[%clk
0:03:02.1]} 5... Nc6 {[%clk 0:02:52.6]} 6. Nxc6 {[%clk 0:03:01.5]} 6... bxc6
{[%clk 0:02:53.5]} 7. Bd3 {[%clk 0:03:01.9]} 7... Ba6 {[%clk 0:02:40]} 8. O-O
{[%clk 0:02:58.6]} 8... Bxd3 {[%clk 0:02:39]} 9. cxd3 {[%clk 0:02:59.5]} 9... e6
{[%clk 0:02:38.6]} 10. Qa4 {[%clk 0:02:57.5]} 10... Qd7 {[%clk 0:02:37.4]} 11.
Be3 {[%clk 0:02:56.8]} 11... c5 {[%clk 0:02:27]} 12. Qa5 {[%clk 0:02:56.7]}
12... d4 {[%clk 0:02:13.8]} 13. Bg5 {[%clk 0:02:43.9]} 13... h6 {[%clk
0:02:13.2]} 14. Bh4 {[%clk 0:02:43.9]} 14... Ne7 {[%clk 0:02:07]} 15. Nd2 {[%clk
0:02:43.6]} 15... Nf5 {[%clk 0:02:03.7]} 16. Bg3 {[%clk 0:02:44]} 16... Be7
{[%clk 0:01:52.8]} 17. Ne4 {[%clk 0:02:43.8]} 17... O-O {[%clk 0:01:48.5]} 18.
Rac1 {[%clk 0:02:43.5]} 18... Rfb8 {[%clk 0:01:39.7]} 19. b3 {[%clk 0:02:43.1]}
19... Qd5 {[%clk 0:01:25.1]} 20. Nxc5 {[%clk 0:02:40]} 20... Nxg3 {[%clk
0:01:23.7]} 21. hxg3 {[%clk 0:02:40]} 21... Qxe5 {[%clk 0:01:22.3]} 22. Rfe1
{[%clk 0:02:39.7]} 22... Qd5 {[%clk 0:01:21]} 23. b4 {[%clk 0:02:39.6]} 23...
Rb6 {[%clk 0:01:03.7]} 24. Rc4 {[%clk 0:02:39]} 24... Bxc5 {[%clk 0:00:56.7]}
25. Rxc5 {[%clk 0:02:39.1]} 25... Qb7 {[%clk 0:00:53.4]} 26. Rc4 {[%clk
0:02:06.5]} 26... Ra6 {[%clk 0:00:53]} 27. Qe5 {[%clk 0:02:06.3]} 27... Rxa2
{[%clk 0:00:49.4]} 28. Rxd4 {[%clk 0:02:06.7]} 28... Qb6 {[%clk 0:00:42.9]} 29.
Ree4 {[%clk 0:02:06.5]} 29... Rc8 {[%clk 0:00:27.7]} 30. Rg4 {[%clk 0:02:05.2]}
30... g6 {[%clk 0:00:26.8]} 31. Qf6 {[%clk 0:02:01.6]} 31... Qc7 {[%clk
0:00:17.3]} 32. Rxg6+ {[%clk 0:01:46.5]} 32... fxg6 {[%clk 0:00:17.9]} 33. Qxg6+
{[%clk 0:01:47.2]} 33... Kh8 {[%clk 0:00:10.1]} 34. Qxh6+ {[%clk 0:01:45.3]}
34... Qh7 {[%clk 0:00:10.4]} 35. Qf6+ {[%clk 0:01:45.3]} 35... Qg7 {[%clk
0:00:06.9]} 36. Rh4+ {[%clk 0:01:45.9]} 36... Kg8 {[%clk 0:00:07.4]} 37. Qxe6+
{[%clk 0:01:46.4]} 37... Qf7 {[%clk 0:00:03.2]} 38. Qxc8+ {[%clk 0:01:45.6]}
38... Kg7 {[%clk 0:00:03.6]} 39. Qg4+ {[%clk 0:01:38.6]} 39... Kf8 {[%clk
0:00:03]} 40. Rh8+ {[%clk 0:01:36.2]} 40... Ke7 {[%clk 0:00:03.3]} 41. Qe4+
{[%clk 0:01:33.5]} 41... Kd6 {[%clk 0:00:02.4]} 42. Rh6+ {[%clk 0:01:33.1]}
42... Kc7 {[%clk 0:00:01.9]} 43. Qc6+ {[%clk 0:01:30.7]} 43... Kd8 {[%clk
0:00:01.4]} 44. Qd6+ {[%clk 0:01:29.4]} 1-0

[Event "Late-Titled-Tuesday-Blitz-January-23-2024"]
[Site "Chess.com"]
[Date "2024.01.23"]
[Round "4"]
[White "Zhigalko_Sergei"]
[Black "Alex_Banzea"]
[Result "1-0"]
[WhiteElo "2972"]
[BlackElo "2628"]
[TimeControl "180+1"]
[EndTime "14:36:57 PST"]
[Termination "Zhigalko_Sergei won by resignation"]

1. e4 {[%clk 0:02:55.3]} 1... c5 {[%clk 0:02:55.1]} 2. Nf3 {[%clk 0:02:54.5]}
2... g6 {[%clk 0:02:54.7]} 3. c3 {[%clk 0:02:54.7]} 3... d5 {[%clk 0:02:53.7]}
4. exd5 {[%clk 0:02:55.6]} 4... Qxd5 {[%clk 0:02:51.4]} 5. d4 {[%clk 0:02:55.2]}
5... Bg7 {[%clk 0:02:51.1]} 6. Na3 {[%clk 0:02:55.1]} 6... cxd4 {[%clk
0:02:48.2]} 7. Bc4 {[%clk 0:02:55]} 7... Qe4+ {[%clk 0:02:48.3]} 8. Be3 {[%clk
0:02:55.1]} 8... Nh6 {[%clk 0:02:42.9]} 9. Nb5 {[%clk 0:02:55]} 9... O-O {[%clk
0:02:35.1]} 10. cxd4 {[%clk 0:02:54.8]} 10... Nf5 {[%clk 0:02:02.8]} 11. Qe2
{[%clk 0:02:54]} 11... Nxe3 {[%clk 0:01:32.5]} 12. fxe3 {[%clk 0:02:54.9]} 12...
Nc6 {[%clk 0:01:32.6]} 13. O-O {[%clk 0:02:50.2]} 13... Bg4 {[%clk 0:01:20.2]}
14. Nc3 {[%clk 0:02:32.3]} 14... Bxf3 {[%clk 0:01:12.6]} 15. Rxf3 {[%clk
0:02:33.2]} 15... Qh4 {[%clk 0:01:10.6]} 16. Rf4 {[%clk 0:01:45.2]} 16... Qh6
{[%clk 0:00:45.9]} 17. Raf1 {[%clk 0:01:31.2]} 17... e6 {[%clk 0:00:46.1]} 18.
Ne4 {[%clk 0:01:30.7]} 18... Rad8 {[%clk 0:00:40.6]} 19. Qf2 {[%clk 0:01:23]}
19... Nxd4 {[%clk 0:00:38.1]} 20. Rh4 {[%clk 0:01:23.1]} 20... Qxh4 {[%clk
0:00:16.1]} 21. Qxh4 {[%clk 0:01:22]} 21... Nf5 {[%clk 0:00:16.4]} 22. Rxf5
{[%clk 0:00:58.5]} 22... exf5 {[%clk 0:00:16.4]} 23. Ng5 {[%clk 0:00:50]} 23...
h6 {[%clk 0:00:15.9]} 24. Nxf7 {[%clk 0:00:50.4]} 24... Rd1+ {[%clk 0:00:15.3]}
25. Kf2 {[%clk 0:00:50.8]} 25... Rd2+ {[%clk 0:00:07.6]} 26. Ke1 {[%clk
0:00:46.1]} 1-0

[Event "Late-Titled-Tuesday-Blitz-January-23-2024"]
[Site "Chess.com"]
[Date "2024.01.23"]
[Round "4"]
[White "Slovak_fighter2000"]
[Black "Vamostodorecto"]
[Result "0-1"]
[WhiteElo "2514"]
[BlackElo "2375"]
[TimeControl "180+1"]
[EndTime "14:37:01 PST"]
[Termination "Vamostodorecto won by checkmate"]

1. d4 {[%clk 0:03:00.8]} 1... Nf6 {[%clk 0:02:54.5]} 2. Nf3 {[%clk 0:02:47.2]}
2... e6 {[%clk 0:02:53.2]} 3. Bg5 {[%clk 0:02:43.7]} 3... c5 {[%clk 0:02:49.4]}
4. e3 {[%clk 0:02:42.6]} 4... Nc6 {[%clk 0:02:47.7]} 5. c3 {[%clk 0:02:41.5]}
5... h6 {[%clk 0:02:47]} 6. Bh4 {[%clk 0:02:41.3]} 6... d5 {[%clk 0:02:45]} 7.
Nbd2 {[%clk 0:02:41.4]} 7... Be7 {[%clk 0:02:44.6]} 8. Bd3 {[%clk 0:02:41]} 8...
O-O {[%clk 0:02:44.5]} 9. O-O {[%clk 0:02:35.1]} 9... b6 {[%clk 0:02:44.8]} 10.
Ne5 {[%clk 0:02:31.6]} 10... Nxe5 {[%clk 0:02:42.7]} 11. dxe5 {[%clk 0:02:32.5]}
11... Nd7 {[%clk 0:02:42.3]} 12. Bxe7 {[%clk 0:02:33.3]} 12... Qxe7 {[%clk
0:02:41.9]} 13. f4 {[%clk 0:02:33.9]} 13... Bb7 {[%clk 0:02:40.7]} 14. Qh5
{[%clk 0:02:26.3]} 14... f5 {[%clk 0:02:38.6]} 15. Rf3 {[%clk 0:02:18.8]} 15...
d4 {[%clk 0:02:35.9]} 16. e4 {[%clk 0:02:13.6]} 16... dxc3 {[%clk 0:02:21.7]}
17. bxc3 {[%clk 0:02:12.2]} 17... c4 {[%clk 0:02:22.4]} 18. Bc2 {[%clk
0:02:08.3]} 18... Rad8 {[%clk 0:02:18.5]} 19. Rg3 {[%clk 0:02:02.7]} 19... Nxe5
{[%clk 0:02:16.5]} 20. Nf1 {[%clk 0:01:40.3]} 20... Qc5+ {[%clk 0:01:48.6]} 21.
Kh1 {[%clk 0:01:35.2]} 21... Ng4 {[%clk 0:01:47.9]} 22. Rxg4 {[%clk 0:01:19.4]}
22... fxg4 {[%clk 0:01:47.2]} 23. Qxg4 {[%clk 0:01:12.2]} 23... Qf2 {[%clk
0:01:35.5]} 24. Qxe6+ {[%clk 0:00:57.4]} 24... Kh8 {[%clk 0:01:36.1]} 25. Ba4
{[%clk 0:00:44.6]} 25... Rxf4 {[%clk 0:01:29.8]} 26. Ng3 {[%clk 0:00:40.2]}
26... Rdf8 {[%clk 0:01:25.7]} 27. Rg1 {[%clk 0:00:34.6]} 27... Bxe4 {[%clk
0:01:12.1]} 28. Bb5 {[%clk 0:00:15.8]} 28... Bd3 {[%clk 0:00:54.7]} 29. a4
{[%clk 0:00:12.4]} 29... Qxg1+ {[%clk 0:00:52.5]} 30. Kxg1 {[%clk 0:00:12.3]}
30... Rf1+ {[%clk 0:00:53.4]} 31. Nxf1 {[%clk 0:00:10.3]} 31... Rxf1# {[%clk
0:00:54.3]} 0-1

[Event "Late-Titled-Tuesday-Blitz-January-23-2024"]
[Site "Chess.com"]
[Date "2024.01.23"]
[Round "4"]
[White "Byniolus"]
[Black "Doomfist26"]
[Result "1-0"]
[WhiteElo "2861"]
[BlackElo "2598"]
[TimeControl "180+1"]
[EndTime "14:37:03 PST"]
[Termination "Byniolus won by resignation"]

1. d4 {[%clk 0:03:00.9]} 1... Nf6 {[%clk 0:02:59.5]} 2. Nf3 {[%clk 0:03:01.3]}
2... g6 {[%clk 0:02:59.5]} 3. Bf4 {[%clk 0:03:01.7]} 3... Bg7 {[%clk 0:02:58.5]}
4. e3 {[%clk 0:03:02.4]} 4... O-O {[%clk 0:02:58.7]} 5. Be2 {[%clk 0:03:02.5]}
5... d6 {[%clk 0:02:59.4]} 6. h3 {[%clk 0:03:03.1]} 6... Nc6 {[%clk 0:03:00.1]}
7. O-O {[%clk 0:03:03.2]} 7... e5 {[%clk 0:02:54.8]} 8. Bh2 {[%clk 0:03:04.1]}
8... Qe7 {[%clk 0:02:53.4]} 9. c4 {[%clk 0:03:03.5]} 9... h6 {[%clk 0:02:47.2]}
10. Nc3 {[%clk 0:03:03]} 10... Nh7 {[%clk 0:02:28.1]} 11. Nd5 {[%clk 0:02:59]}
11... Qd8 {[%clk 0:02:28]} 12. b4 {[%clk 0:02:57.6]} 12... Be6 {[%clk
0:02:19.7]} 13. b5 {[%clk 0:02:57.7]} 13... Bxd5 {[%clk 0:02:14.2]} 14. cxd5
{[%clk 0:02:58.6]} 14... Ne7 {[%clk 0:02:14.6]} 15. dxe5 {[%clk 0:02:52.5]}
15... dxe5 {[%clk 0:02:15.3]} 16. e4 {[%clk 0:02:52.9]} 16... Qd6 {[%clk
0:02:13.1]} 17. Rc1 {[%clk 0:02:39.1]} 17... f5 {[%clk 0:02:11.3]} 18. Nd2
{[%clk 0:02:34.2]} 18... f4 {[%clk 0:02:04.6]} 19. Qc2 {[%clk 0:02:11]} 19... c6
{[%clk 0:01:50.6]} 20. bxc6 {[%clk 0:01:55.7]} 20... bxc6 {[%clk 0:01:49.3]} 21.
dxc6 {[%clk 0:01:56.6]} 21... Nxc6 {[%clk 0:01:28.1]} 22. Qxc6 {[%clk
0:01:42.9]} 22... Qxd2 {[%clk 0:01:26.7]} 23. Bc4+ {[%clk 0:01:39.7]} 23... Kh8
{[%clk 0:01:26.6]} 24. Qxg6 {[%clk 0:01:35.1]} 24... Rac8 {[%clk 0:01:03.4]} 25.
Rcd1 {[%clk 0:01:25.9]} 25... Qb2 {[%clk 0:00:57.6]} 26. Bb3 {[%clk 0:01:23.7]}
26... Ng5 {[%clk 0:00:55]} 27. Rd7 {[%clk 0:00:55.7]} 27... Rg8 {[%clk
0:00:34.1]} 28. h4 {[%clk 0:00:48.4]} 1-0

[Event "Late-Titled-Tuesday-Blitz-January-23-2024"]
[Site "Chess.com"]
[Date "2024.01.23"]
[Round "4"]
[White "el008"]
[Black "Ze-Pequeno"]
[Result "0-1"]
[WhiteElo "2421"]
[BlackElo "2196"]
[TimeControl "180+1"]
[EndTime "14:37:03 PST"]
[Termination "Ze-Pequeno won by checkmate"]

1. e4 {[%clk 0:03:00.9]} 1... c5 {[%clk 0:02:59.6]} 2. Nf3 {[%clk 0:03:01.1]}
2... d6 {[%clk 0:02:59.8]} 3. d4 {[%clk 0:03:01.6]} 3... cxd4 {[%clk 0:03:00.3]}
4. Nxd4 {[%clk 0:03:02.5]} 4... Nf6 {[%clk 0:03:00.7]} 5. Nc3 {[%clk 0:03:02.8]}
5... a6 {[%clk 0:03:00.9]} 6. f3 {[%clk 0:03:03.2]} 6... e6 {[%clk 0:03:00.7]}
7. Be3 {[%clk 0:03:00.2]} 7... b5 {[%clk 0:03:00.8]} 8. Qd2 {[%clk 0:02:58.1]}
8... Bb7 {[%clk 0:03:00.9]} 9. g4 {[%clk 0:02:53.7]} 9... Nfd7 {[%clk
0:02:59.5]} 10. g5 {[%clk 0:02:52.9]} 10... Nb6 {[%clk 0:02:59.8]} 11. a3 {[%clk
0:02:49.4]} 11... N8d7 {[%clk 0:02:59]} 12. f4 {[%clk 0:02:43.3]} 12... Rc8
{[%clk 0:02:56.7]} 13. O-O-O {[%clk 0:02:19.1]} 13... d5 {[%clk 0:01:42.3]} 14.
e5 {[%clk 0:02:11.1]} 14... b4 {[%clk 0:01:39.4]} 15. axb4 {[%clk 0:02:11]}
15... Bxb4 {[%clk 0:01:38.8]} 16. Qe1 {[%clk 0:01:53.4]} 16... Na4 {[%clk
0:01:31.7]} 17. Bd2 {[%clk 0:01:47.5]} 17... Nxc3 {[%clk 0:01:26.9]} 18. Bxc3
{[%clk 0:01:48.4]} 18... Bxc3 {[%clk 0:01:27.3]} 19. bxc3 {[%clk 0:01:49.3]}
19... g6 {[%clk 0:01:03.1]} 20. Qe3 {[%clk 0:01:37.7]} 20... Nc5 {[%clk
0:00:59.8]} 21. c4 {[%clk 0:01:11]} 21... Qa5 {[%clk 0:00:58.3]} 22. cxd5 {[%clk
0:01:06.7]} 22... Bxd5 {[%clk 0:00:57.8]} 23. Rg1 {[%clk 0:01:02.7]} 23... Ne4
{[%clk 0:00:54.5]} 24. Nb3 {[%clk 0:00:44.1]} 24... Qa3+ {[%clk 0:00:49.4]} 25.
Kb1 {[%clk 0:00:44.2]} 25... Nc3+ {[%clk 0:00:48.3]} 26. Qxc3 {[%clk 0:00:44.7]}
26... Rxc3 {[%clk 0:00:48.1]} 27. Nc1 {[%clk 0:00:45]} 27... O-O {[%clk
0:00:45.2]} 28. Rxd5 {[%clk 0:00:36.8]} 28... exd5 {[%clk 0:00:41.4]} 29. Rg3
{[%clk 0:00:25.7]} 29... Rb8+ {[%clk 0:00:38.4]} 30. Nb3 {[%clk 0:00:26.2]}
30... Rbxb3+ {[%clk 0:00:36.1]} 31. cxb3 {[%clk 0:00:27.1]} 31... Qxb3+ {[%clk
0:00:35.7]} 32. Ka1 {[%clk 0:00:28]} 32... Rc1# {[%clk 0:00:35.6]} 0-1

[Event "Late-Titled-Tuesday-Blitz-January-23-2024"]
[Site "Chess.com"]
[Date "2024.01.23"]
[Round "4"]
[White "ValeriyGrinev"]
[Black "AsaHoffmann"]
[Result "1-0"]
[WhiteElo "2538"]
[BlackElo "2368"]
[TimeControl "180+1"]
[EndTime "14:37:05 PST"]
[Termination "ValeriyGrinev won by resignation"]

1. e4 {[%clk 0:02:52.9]} 1... d6 {[%clk 0:02:58.6]} 2. d4 {[%clk 0:02:51.1]}
2... Nf6 {[%clk 0:02:58.4]} 3. f3 {[%clk 0:02:51]} 3... Nbd7 {[%clk 0:02:57.6]}
4. c4 {[%clk 0:02:50.9]} 4... e5 {[%clk 0:02:57.4]} 5. d5 {[%clk 0:02:50.9]}
5... Be7 {[%clk 0:02:57.3]} 6. Nc3 {[%clk 0:02:50.7]} 6... a5 {[%clk 0:02:55.8]}
7. Bd3 {[%clk 0:02:50.9]} 7... Nc5 {[%clk 0:02:55.6]} 8. Bc2 {[%clk 0:02:50.8]}
8... O-O {[%clk 0:02:55.2]} 9. Nge2 {[%clk 0:02:51.4]} 9... Nfd7 {[%clk
0:02:54.7]} 10. g4 {[%clk 0:02:50.7]} 10... Bg5 {[%clk 0:02:53.5]} 11. Kf1
{[%clk 0:02:51.4]} 11... g6 {[%clk 0:02:37.8]} 12. Bxg5 {[%clk 0:02:42.6]} 12...
Qxg5 {[%clk 0:02:37]} 13. h4 {[%clk 0:02:43.3]} 13... Qe3 {[%clk 0:02:31]} 14.
Kg2 {[%clk 0:02:37.3]} 14... f5 {[%clk 0:02:30.3]} 15. gxf5 {[%clk 0:02:36]}
15... gxf5 {[%clk 0:02:29.5]} 16. Qc1 {[%clk 0:02:35.4]} 16... Qxc1 {[%clk
0:02:16.9]} 17. Raxc1 {[%clk 0:02:34.1]} 17... fxe4 {[%clk 0:02:14.1]} 18. Nxe4
{[%clk 0:02:29.3]} 18... Nxe4 {[%clk 0:02:12.8]} 19. Bxe4 {[%clk 0:02:27.5]}
19... Nf6 {[%clk 0:02:11.6]} 20. Ng3 {[%clk 0:02:26.8]} 20... Kh8 {[%clk
0:02:08.5]} 21. c5 {[%clk 0:02:19.9]} 21... Rg8 {[%clk 0:02:06.9]} 22. Kh2
{[%clk 0:02:16.8]} 22... Nxe4 {[%clk 0:02:00.5]} 23. fxe4 {[%clk 0:02:16.1]}
23... Rg4 {[%clk 0:01:58.5]} 24. h5 {[%clk 0:02:14.5]} 24... Bd7 {[%clk
0:01:55.6]} 25. cxd6 {[%clk 0:02:13.7]} 25... cxd6 {[%clk 0:01:55.5]} 26. Rc7
{[%clk 0:02:14.4]} 26... Rag8 {[%clk 0:01:53.2]} 27. Rg1 {[%clk 0:02:11.9]}
27... Be8 {[%clk 0:01:49.5]} 28. Rc8 {[%clk 0:01:36.7]} 28... Bd7 {[%clk
0:01:42.9]} 29. Rc7 {[%clk 0:01:18.9]} 29... Be8 {[%clk 0:01:39.1]} 30. Rc8
{[%clk 0:01:01.1]} 30... Bd7 {[%clk 0:01:38.7]} 31. Rxg8+ {[%clk 0:00:57.3]}
31... Rxg8 {[%clk 0:01:30.8]} 32. Rc1 {[%clk 0:00:56.6]} 32... Rc8 {[%clk
0:01:29.2]} 33. Rxc8+ {[%clk 0:00:53.7]} 33... Bxc8 {[%clk 0:01:29.2]} 34. Nf1
{[%clk 0:00:48]} 34... Kg7 {[%clk 0:01:28.9]} 35. Kg3 {[%clk 0:00:47.8]} 35...
Kf6 {[%clk 0:01:26.3]} 36. Kh4 {[%clk 0:00:47.1]} 36... h6 {[%clk 0:01:22.2]}
37. Ne3 {[%clk 0:00:42.3]} 37... Bd7 {[%clk 0:01:21.7]} 38. Nc4 {[%clk
0:00:41.7]} 38... Ke7 {[%clk 0:01:19.3]} 39. Nxa5 {[%clk 0:00:41.5]} 39... b6
{[%clk 0:01:13.2]} 40. Nc4 {[%clk 0:00:41.2]} 40... b5 {[%clk 0:01:12]} 41. Ne3
{[%clk 0:00:37.3]} 41... b4 {[%clk 0:01:10.5]} 42. a3 {[%clk 0:00:36.4]} 42...
bxa3 {[%clk 0:01:09.7]} 43. bxa3 {[%clk 0:00:36.1]} 43... Bb5 {[%clk 0:01:09.2]}
44. Nf5+ {[%clk 0:00:35]} 44... Kd7 {[%clk 0:01:09.2]} 45. Nxh6 {[%clk
0:00:31.1]} 45... Bd3 {[%clk 0:01:09]} 46. Ng4 {[%clk 0:00:31.2]} 46... Bxe4
{[%clk 0:01:08.5]} 47. Nf6+ {[%clk 0:00:31.1]} 47... Ke7 {[%clk 0:01:06.2]} 48.
Nxe4 {[%clk 0:00:31.5]} 1-0

[Event "Late-Titled-Tuesday-Blitz-January-23-2024"]
[Site "Chess.com"]
[Date "2024.01.23"]
[Round "4"]
[White "annasargsyan_m"]
[Black "Cubitas"]
[Result "0-1"]
[WhiteElo "2540"]
[BlackElo "2732"]
[TimeControl "180+1"]
[EndTime "14:37:06 PST"]
[Termination "Cubitas won by resignation"]

1. d4 {[%clk 0:03:00.9]} 1... Nf6 {[%clk 0:02:58.7]} 2. c4 {[%clk 0:03:00.6]}
2... g6 {[%clk 0:02:59.1]} 3. g3 {[%clk 0:03:01.1]} 3... Bg7 {[%clk 0:02:59.4]}
4. Bg2 {[%clk 0:03:01.8]} 4... O-O {[%clk 0:02:59.8]} 5. Nc3 {[%clk 0:03:02.5]}
5... d6 {[%clk 0:03:00.2]} 6. Nf3 {[%clk 0:03:03.1]} 6... c6 {[%clk 0:02:56.6]}
7. O-O {[%clk 0:03:03.3]} 7... Qa5 {[%clk 0:02:56.4]} 8. e4 {[%clk 0:03:02.4]}
8... Nbd7 {[%clk 0:02:49.6]} 9. h3 {[%clk 0:03:02.4]} 9... Nb6 {[%clk
0:02:46.6]} 10. Qe2 {[%clk 0:02:58.7]} 10... Qa6 {[%clk 0:02:42.1]} 11. b3
{[%clk 0:02:57.2]} 11... d5 {[%clk 0:02:31.8]} 12. e5 {[%clk 0:02:57.4]} 12...
Ne8 {[%clk 0:02:26.9]} 13. Bg5 {[%clk 0:02:55.7]} 13... f6 {[%clk 0:02:22.1]}
14. exf6 {[%clk 0:02:43.4]} 14... exf6 {[%clk 0:02:23]} 15. Bf4 {[%clk
0:02:41.5]} 15... dxc4 {[%clk 0:02:21.6]} 16. Rfe1 {[%clk 0:02:24.1]} 16... g5
{[%clk 0:02:06.8]} 17. Be3 {[%clk 0:02:15.6]} 17... Bf5 {[%clk 0:02:04.7]} 18.
Qb2 {[%clk 0:02:12.2]} 18... Nd6 {[%clk 0:02:00.1]} 19. Nd2 {[%clk 0:01:58]}
19... Bd3 {[%clk 0:01:55]} 20. a4 {[%clk 0:01:37.6]} 20... Qa5 {[%clk
0:01:51.3]} 21. b4 {[%clk 0:01:32.9]} 21... Qf5 {[%clk 0:01:50.5]} 22. a5 {[%clk
0:01:27]} 22... Nd5 {[%clk 0:01:32.6]} 23. g4 {[%clk 0:01:26.5]} 23... Qd7
{[%clk 0:01:31.5]} 24. Nxd5 {[%clk 0:01:25.3]} 24... cxd5 {[%clk 0:01:32.4]} 25.
Bxd5+ {[%clk 0:01:25.1]} 25... Kh8 {[%clk 0:01:32.5]} 26. Bg2 {[%clk 0:01:20.7]}
26... f5 {[%clk 0:01:31.2]} 27. Bxg5 {[%clk 0:01:16.9]} 27... fxg4 {[%clk
0:01:24.9]} 28. Re7 {[%clk 0:01:16.9]} 28... Qf5 {[%clk 0:01:24.8]} 29. Be3
{[%clk 0:00:57.3]} 29... gxh3 {[%clk 0:01:07]} 30. Bh1 {[%clk 0:00:57.1]} 30...
Bf6 {[%clk 0:01:00]} 31. Rc7 {[%clk 0:00:51.3]} 31... h2+ {[%clk 0:00:32.7]} 32.
Kxh2 {[%clk 0:00:44.6]} 32... Qh5+ {[%clk 0:00:32.5]} 33. Kg1 {[%clk 0:00:32.1]}
33... Rg8+ {[%clk 0:00:33]} 34. Bg2 {[%clk 0:00:31.5]} 34... Rxg2+ {[%clk
0:00:33.2]} 35. Kxg2 {[%clk 0:00:31.7]} 35... Rg8+ {[%clk 0:00:33.6]} 0-1